lending/lending_fUSD_20240806
["ID","MTS","AMOUNT","RATE_DAILY","PERIOD"]
[334297676,1722924638317,-500.0,0.00011,2]
[334297678,1722924638326,-500.0,0.00011,2]
[334297680,1722924638336,-500.0,0.00011,2]
[334297682,1722924638345,-500.0,0.00011,2]
[334297684,1722924638354,-500.0,0.00011,2]
[334297686,1722924638363,-500.0,0.00011,2]
[334297688,1722924638373,-500.0,0.00011,2]
[334297690,1722924638382,-500.0,0.00011,2]
[334297692,1722924638391,-500.0,0.00011,2]
[334297694,1722924638401,-500.0,0.00011,2]
[334297696,1722924638410,-500.0,0.00011,2]
[334297698,1722924638419,-500.0,0.00011,2]
[334297700,1722924638428,-500.0,0.00011,2]
[334297702,1722924638438,-500.0,0.00011,2]
[334297704,1722924638447,-500.0,0.00011,2]
[334297706,1722924638456,-500.0,0.00011,2]
[334297708,1722924638466,-500.0,0.00011,2]
[334297710,1722924638475,-500.0,0.00011,2]
[334297711,1722924638485,-500.0,0.00011,2]
[334297713,1722924638494,-500.0,0.00011,2]
[334297715,1722924638504,-500.0,0.00011,2]
[334297717,1722924638514,-500.0,0.00011,2]
[334297719,1722924638524,-500.0,0.00011,2]
[334297721,1722924638534,-500.0,0.00011,2]
[334297723,1722924638543,-569.94,0.00011,2]
[334297725,1722924638553,-500.0,0.00011,2]
[334297727,1722924638563,-500.0,0.00011,2]
[334297729,1722924638572,-500.0,0.00011,2]
[334297731,1722924638581,-500.0,0.00011,2]
[334297733,1722924638590,-500.0,0.00011,2]
[334297735,1722924638600,-642.27,0.00011,2]
[334297737,1722924638609,-500.0,0.00011,2]
[334297739,1722924638619,-250.0,0.00011,2]
[334297741,1722924638629,-250.0,0.00011,2]
[334297743,1722924638639,-250.0,0.00011,2]
[334297745,1722924638651,-250.0,0.00011,2]
[334297747,1722924638660,-250.0,0.00011,2]
[334297749,1722924638670,-250.0,0.00011,2]
[334297751,1722924638681,-250.0,0.00011,2]
[334297752,1722924638691,-250.0,0.00011,2]
[334297753,1722924638700,-250.0,0.00011,2]
[334297754,1722924638709,-250.0,0.00011,2]
[334297755,1722924638718,-250.0,0.00011,2]
[334297756,1722924638728,-250.0,0.00011,2]
[334297757,1722924638738,-250.0,0.00011,2]
[334297758,1722924638747,-250.0,0.00011,2]
[334297759,1722924638757,-416.8,0.00011,2]
[334297760,1722924638767,-250.91635025,0.00011,2]
[334297761,1722924638778,-1836.26,0.00011,2]
[334297762,1722924638787,-150.99,0.00011,2]
[334297764,1722924638796,-1320.48,0.00011,2]
[334297765,1722924638806,-551.06,0.00011055,2]
[334297767,1722924638816,-250.0,0.00011069,2]
[334297769,1722924638825,-1256.0,0.00011072,2]
[334297771,1722924638839,-1925.0,0.00011072,2]
[334297773,1722924638849,-622.0,0.00011072,2]
[334297775,1722924638859,-1583.0,0.00011072,2]
[334297777,1722924638868,-452.592,0.00011072,2]
[334297779,1722924638879,-150.4,0.00011072,2]
[334297781,1722924638888,-446.0,0.00011072,2]
[334297783,1722924638898,-1552.0,0.00011072,2]
[334297785,1722924638910,-812.0,0.00011072,2]
[334297787,1722924638920,-1893.0,0.00011072,2]
[334297789,1722924638930,-551.0,0.00011072,2]
[334297791,1722924638939,-3289.0,0.00011072,2]
[334297830,1722924639297,-19700.37891776,0.00011105,2]
[334297832,1722924639314,-337.12,0.00011122,2]
[334297834,1722924639324,-25357.2624585,0.00011186,2]
[334297836,1722924639334,-35709.75163843,0.00011186,2]
[334297838,1722924639343,-22646.83149119,0.00011324,2]
[334297840,1722924639353,-25310.66391755,0.00011324,2]
[334297842,1722924639363,-15475.39970181,0.00011324,2]
[334297844,1722924639373,-609.6,0.00011397,2]
[334297846,1722924639382,-1000.0,0.000114,2]
[334297848,1722924639391,-226.0,0.000114,2]
[334297850,1722924639401,-954.3,0.000114,2]
[334297852,1722924639411,-512.8,0.000114,2]
[334297854,1722924639421,-357.0,0.000114,2]
[334297856,1722924639430,-388.03778467,0.00011597,2]
[334297858,1722924639440,-150.0,0.00011733,2]
[334297860,1722924639451,-150.0,0.00011787,2]
[334297862,1722924639460,-150.0,0.00011792,2]
[334297864,1722924639471,-5015.44375325,0.00011804,2]
[334297866,1722924639480,-5000.0,0.00011804,2]
[334297868,1722924639489,-5000.0,0.00011804,2]
[334297870,1722924639499,-5000.0,0.00011804,2]
[334297872,1722924639509,-5000.0,0.00011804,2]
[334297874,1722924639518,-704.88,0.00011836,2]
[334297876,1722924639529,-301.07,0.00011836,2]
[334297878,1722924639539,-335.1296,0.00011843,2]
[334297880,1722924639548,-500.0,0.00011843,2]
[334297882,1722924639558,-150.0,0.00011849,2]
[334297884,1722924639568,-150.0,0.0001186,2]
[334297886,1722924639577,-3000.0,0.0001188,2]
[334297888,1722924639587,-48336.0,0.00011896,2]
[334297890,1722924639596,-500.0,0.00011904,2]
[334297892,1722924639605,-150.0,0.00011906,2]
[334297894,1722924639615,-500.0,0.0001194,2]
[334297896,1722924639625,-500.0,0.0001194,2]
[334297898,1722924639634,-500.0,0.0001194,2]
[334297900,1722924639643,-500.0,0.0001194,2]
[334297902,1722924639652,-500.0,0.0001194,2]
[334297904,1722924639661,-378.0018,0.0001194,2]
[334297906,1722924639671,-500.0,0.0001194,2]
[334297908,1722924639680,-500.0,0.0001194,2]
[334297910,1722924639689,-500.0,0.0001194,2]
[334297912,1722924639699,-500.0,0.0001194,2]
[334297914,1722924639709,-500.0,0.0001194,2]
[334297916,1722924639718,-500.0,0.0001194,2]
[334297918,1722924639727,-500.0,0.0001194,2]
[334297920,1722924639736,-500.0,0.0001194,2]
[334297922,1722924639745,-500.0,0.0001194,2]
[334297924,1722924639755,-100000.0,0.00011943,2]
[334297926,1722924639764,-150.0,0.00011955,2]
[334297928,1722924639774,-887.7911,0.0001199,2]
[334297930,1722924639786,-1270.0739594,0.00011993,2]
[334297932,1722924639795,-1171.3580161,0.00011993,2]
[334297934,1722924639804,-2989.1194522,0.00011993,2]
[334297936,1722924639813,-211.99250283,0.00011999,2]
[334297938,1722924639822,-1000.0,0.00012,2]
[334297939,1722924639831,-1000.0,0.00012,2]
[334297941,1722924639845,-1000.0,0.00012,2]
[334297943,1722924639854,-1000.0,0.00012,2]
[334297945,1722924639864,-1010.04429416,0.00012,2]
[334297947,1722924639874,-2000.0,0.00012,2]
[334297949,1722924639883,-200.0,0.00012,2]
[334297951,1722924639892,-2000.0,0.00012,2]
[334297953,1722924639901,-721.197,0.00012,2]
[334297955,1722924639910,-336.4391,0.00012,2]
[334297957,1722924639921,-203.54,0.00012033,2]
[334297959,1722924639931,-390.4,0.00012056,2]
[334297961,1722924639940,-2000.0,0.0001212,2]
[334297963,1722924639950,-200.0,0.0001212,2]
[334297964,1722924639959,-151.1,0.0001219,2]
[334297966,1722924639969,-6504.7654,0.000122,2]
[334297968,1722924639978,-161.98452795,0.00012229,2]
[334297970,1722924639987,-2000.0,0.00012241,2]
[334297972,1722924639996,-200.0,0.00012241,2]
[334297974,1722924640006,-150000.0,0.000123,2]
[334297976,1722924640016,-2000.0,0.00012329,2]
[334297978,1722924640029,-395.0,0.0001233,2]
[334297980,1722924640046,-5000.0,0.0001236,2]
[334297982,1722924640056,-2084.37186105,0.0001236,2]
[334297984,1722924640071,-155.0,0.0001236,2]
[334297986,1722924640081,-2000.0,0.00012364,2]
[334297988,1722924640091,-200.0,0.00012364,2]
[334297990,1722924640100,-5391.51908666,0.00012397,2]
[334297992,1722924640109,-280.0,0.00012442,2]
[334297994,1722924640119,-203.54,0.00012458,2]
[334297996,1722924640127,-2000.0,0.00012487,2]
[334297998,1722924640137,-200.0,0.00012487,2]
[334298000,1722924640147,-169.81,0.0001251,2]
[334298002,1722924640156,-207.10044063,0.00012536,2]
[334298004,1722924640165,-500.0,0.00012539,2]
[334298006,1722924640174,-197.56926599,0.00012539,2]
[334298008,1722924640184,-500.0,0.00012539,2]
[334298010,1722924640193,-500.0,0.00012539,2]
[334298012,1722924640203,-612.99904352,0.00012539,2]
[334298014,1722924640213,-500.0,0.00012539,2]
[334298016,1722924640222,-500.0,0.00012539,2]
[334298018,1722924640231,-98540.71619448,0.00012539,2]
[334298019,1722924640241,-463072.15203972,0.0001254,2]
[334298020,1722924640261,-3699.82473774,0.0001254,2]
[334298082,1722924640917,158.9995564,8.859e-05,2]
[334298156,1722924641994,-256.9003414,0.00011324,2]
[334298157,1722924642006,-565.52502004,0.00011324,2]
[334298158,1722924642039,692.92070415,8.859e-05,2]
[334298186,1722924642385,-3162.60000008,0.00011324,2]
[334298425,1722924644755,-18234.28300991,0.00011324,2]
[334298427,1722924644771,-427.52311976,0.00011324,2]
[334298429,1722924644783,-179.62,0.00011353,2]
[334298432,1722924644797,-514.5134778,0.00012025,2]
[334298434,1722924644806,-43321.52946568,0.0001254,2]
[334298436,1722924644816,-3402.64786187,0.0001254,2]
[334298438,1722924644826,-153.118643,0.00012574,2]
[334298440,1722924644839,-4474.82055447,0.00012581,2]
[334298442,1722924644849,-3119.38384377,0.00012581,2]
[334298444,1722924644858,-3977.76480579,0.00012613,2]
[334298446,1722924644867,-221.0,0.0001264,2]
[334298448,1722924644877,-10529.194286,0.00012681,2]
[334298450,1722924644886,-1405.38101574,0.00012681,2]
[334298452,1722924644900,-5401.11645721,0.00012681,2]
[334298454,1722924644910,-426.02,0.0001269,2]
[334298456,1722924644921,-2214.58758417,0.0001269,2]
[334298458,1722924644931,-3080.64330084,0.0001269,2]
[334298460,1722924644941,-1725.0,0.0001269,2]
[334298462,1722924644951,-370.4067043,0.00012696,2]
[334298464,1722924644960,-1274.96047504,0.00012749,2]
[334298466,1722924644969,-2385.06010554,0.00012749,2]
[334298468,1722924644979,-1423.7355633,0.00012749,3]
[334298471,1722924644988,-1297.62235699,0.00012749,2]
[334298473,1722924644998,-150.0,0.00012771,5]
[334298475,1722924645007,-233.59554998,0.00012771,5]
[334298477,1722924645018,-215.06110411,0.00012793,2]
[334298479,1722924645027,-264.36092051,0.00012818,2]
[334298481,1722924645042,-609.6,0.00012822,2]
[334298483,1722924645051,-892.04452683,0.00012826,2]
[334298485,1722924645060,-1074.12957374,0.00012826,2]
[334298487,1722924645069,-628.32182631,0.00012826,2]
[334298489,1722924645079,-1074.12957374,0.00012826,2]
[334298491,1722924645089,-155.0,0.00012826,2]
[334298493,1722924645099,-1176.3199048,0.00012826,2]
[334298495,1722924645108,-155.12890595,0.00012826,2]
[334298497,1722924645118,-155.95815908,0.00012826,2]
[334298499,1722924645127,-1138.52210003,0.00012826,2]
[334298501,1722924645137,-1500.0,0.00012855,2]
[334298503,1722924645147,-600.45534575,0.00012855,2]
[334298505,1722924645157,-633.48429986,0.00012855,2]
[334298507,1722924645167,-653.31483393,0.00012855,2]
[334298509,1722924645177,-921.08584336,0.00012855,2]
[334298511,1722924645186,-159.52802673,0.00012855,2]
[334298513,1722924645196,-547.5533665,0.00012855,2]
[334298515,1722924645207,-155.0,0.00012855,2]
[334298517,1722924645217,-600.45534575,0.00012855,2]
[334298519,1722924645226,-277.30617918,0.00012855,2]
[334298521,1722924645237,-155.2091091,0.00012855,2]
[334298523,1722924645247,-155.31534165,0.00012855,2]
[334298524,1722924645257,-155.98612488,0.00012855,2]
[334298525,1722924645267,-723.05727297,0.00012855,2]
[334298526,1722924645276,-521.85175988,0.00012855,2]
[334298527,1722924645287,-2144.87452689,0.00012855,2]
[334298528,1722924645297,-253.08327474,0.00012855,2]
[334298529,1722924645306,-210.95829151,0.00012883,2]
[334298530,1722924645315,-594.76876135,0.00012883,2]
[334298531,1722924645325,-649.54016177,0.00012883,2]
[334298532,1722924645334,-649.54016177,0.00012883,2]
[334298533,1722924645344,-255.06784743,0.00012883,2]
[334298534,1722924645354,-155.86013976,0.00012883,2]
[334298536,1722924645364,-303.44011895,0.00012883,2]
[334298537,1722924645374,-594.76876135,0.00012883,2]
[334298538,1722924645383,-686.66832223,0.00012883,2]
[334298539,1722924645393,-155.0,0.00012883,2]
[334298540,1722924645403,-155.21621645,0.00012883,2]
[334298541,1722924645413,-155.67714629,0.00012883,2]
[334298542,1722924645423,-155.0,0.00012883,2]
[334298544,1722924645433,-211.51511495,0.00012883,2]
[334298546,1722924645443,-155.0,0.00012883,2]
[334298547,1722924645452,-253.38448167,0.00012883,2]
[334298548,1722924645462,-270.43561965,0.00012883,2]
[334298549,1722924645471,-183.51200009,0.00012883,2]
[334298550,1722924645481,-197.03073788,0.00012883,2]
[334298551,1722924645491,-155.0,0.00012883,2]
[334298552,1722924645502,-181.74947375,0.00012883,2]
[334298553,1722924645511,-155.0,0.00012883,2]
[334298554,1722924645521,-297.12795746,0.00012883,2]
[334298555,1722924645533,-200.3770664,0.00012883,2]
[334298557,1722924645543,-155.0,0.00012883,2]
[334298560,1722924645552,-200.0,0.00012883,2]
[334298563,1722924645562,-197.03130929,0.00012883,2]
[334298565,1722924645571,-155.05642676,0.00012883,2]
[334298567,1722924645582,-203.54,0.00012884,2]
[334298569,1722924645591,-179.99,0.00012893,2]
[334298571,1722924645602,-155.06510407,0.00012924,2]
[334298574,1722924645612,-155.64555171,0.00012924,2]
[334298577,1722924645622,-155.0,0.00012924,2]
[334298580,1722924645632,-155.18703391,0.00012924,2]
[334298582,1722924645641,-528.6753844,0.00012924,2]
[334298585,1722924645651,-155.0,0.00012924,2]
[334298587,1722924645663,-493.36886107,0.00012924,2]
[334298588,1722924645672,-155.0,0.00012924,2]
[334298589,1722924645682,-155.0,0.00012924,2]
[334298590,1722924645692,-157.25242803,0.00012924,2]
[334298591,1722924645702,-155.0,0.00012924,2]
[334298592,1722924645712,-155.10534694,0.00012924,2]
[334298593,1722924645721,-158.97080214,0.00012924,2]
[334298594,1722924645731,-155.0,0.00012924,2]
[334298595,1722924645741,-155.0,0.00012924,2]
[334298596,1722924645750,-164.3205544,0.00012924,2]
[334298597,1722924645760,-439.86607243,0.00012924,2]
[334298598,1722924645770,-155.71535338,0.00012924,2]
[334298599,1722924645779,-155.09842125,0.00012924,2]
[334298600,1722924645793,-211.69041495,0.00012924,2]
[334298601,1722924645803,-454.36595222,0.00012924,2]
[334298602,1722924645812,-155.10113592,0.00012924,2]
[334298603,1722924645822,-155.95126116,0.00012924,2]
[334298604,1722924645833,-155.0,0.00012924,2]
[334298606,1722924645846,-155.0,0.00012924,2]
[334298608,1722924645855,-155.0,0.00012924,2]
[334298610,1722924645864,-365.55814847,0.00012924,2]
[334298612,1722924645874,-155.08373419,0.00012924,2]
[334298614,1722924645884,-155.10091788,0.00012924,2]
[334298616,1722924645894,-155.0706838,0.00012924,2]
[334298618,1722924645903,-155.0,0.00012924,2]
[334298620,1722924645913,-357.27329428,0.00012928,2]
[334298623,1722924645924,-155.59935761,0.00012928,2]
[334298626,1722924645935,-400.0,0.00012928,2]
[334298629,1722924645945,-155.0,0.00012928,2]
[334298632,1722924645955,-357.27329428,0.00012928,2]
[334298635,1722924645965,-309.13195594,0.00012928,2]
[334298638,1722924645974,-162.15440718,0.00012928,2]
[334298641,1722924645984,-203.31285959,0.00012928,2]
[334298643,1722924645994,-155.0,0.00012928,2]
[334298645,1722924646003,-155.05593977,0.00012928,2]
[334298647,1722924646013,-155.06830734,0.00012928,2]
[334298648,1722924646023,-155.0,0.00012928,2]
[334298649,1722924646034,-158.92312408,0.00012928,2]
[334298650,1722924646043,-313.56779303,0.00012928,2]
[334298651,1722924646052,-155.07752341,0.00012928,2]
[334298652,1722924646062,-203.31285959,0.00012928,2]
[334298653,1722924646072,-155.36263632,0.00012928,2]
[334298654,1722924646081,-236.22265228,0.00012928,2]
[334298655,1722924646091,-155.0,0.00012928,2]
[334298656,1722924646101,-155.0,0.00012928,2]
[334298657,1722924646111,-418.97004719,0.00012995,2]
[334298658,1722924646121,-155.0,0.00012995,2]
[334298659,1722924646131,-155.0,0.00012995,2]
[334298660,1722924646141,-155.0,0.00012995,2]
[334298662,1722924646151,-155.0,0.00012995,2]
[334298663,1722924646160,-155.0,0.00012995,2]
[334298666,1722924646171,-380.14796081,0.00012995,2]
[334298668,1722924646181,-328.08103898,0.00012995,2]
[334298670,1722924646191,-205.84081524,0.00012995,2]
[334298672,1722924646201,-155.0,0.00012995,2]
[334298674,1722924646210,-155.07660308,0.00012995,2]
[334298675,1722924646220,-1000.0,0.00013,3]
[334298678,1722924646230,-2000.0,0.00013,2]
[334298680,1722924646240,-600.0,0.00013,2]
[334298682,1722924646250,-150.0,0.00013,2]
[334298684,1722924646260,-151.50691495,0.00013,2]
[334298685,1722924646270,-150.0,0.00013,2]
[334298687,1722924646285,-150.0,0.00013,2]
[334298688,1722924646294,-150.0,0.00013,2]
[334298689,1722924646304,-150.0,0.00013,2]
[334298690,1722924646314,-150.0,0.00013,2]
[334298691,1722924646324,-150.0,0.00013,2]
[334298692,1722924646334,-150.0,0.00013,2]
[334298693,1722924646344,-150.0,0.00013,2]
[334298694,1722924646355,-299.11571872,0.00013,2]
[334298695,1722924646365,-150.0,0.00013,2]
[334298696,1722924646375,-150.0,0.00013,2]
[334298697,1722924646384,-150.0,0.00013,2]
[334298698,1722924646394,-150.0,0.00013,2]
[334298699,1722924646403,-155.0,0.00013,2]
[334298700,1722924646413,-414.62091517,0.00013,2]
[334298701,1722924646423,-164.30370946,0.00013,2]
[334298702,1722924646432,-2262.16298877,0.00013,2]
[334298703,1722924646442,-155.0,0.00013,2]
[334298704,1722924646451,-206.66942035,0.00013,2]
[334298705,1722924646461,-155.0,0.00013,2]
[334298706,1722924646470,-165.42755717,0.00013,2]
[334298707,1722924646480,-155.0,0.00013,2]
[334298708,1722924646491,-155.0,0.00013,2]
[334298709,1722924646501,-155.0,0.00013,2]
[334298710,1722924646510,-401.12503633,0.00013066,2]
[334298711,1722924646520,-363.99654651,0.00013066,2]
[334298712,1722924646529,-395.0,0.000131,2]
[334298713,1722924646542,-426.02,0.00013183,2]
[334298714,1722924646551,-426.02,0.00013183,2]
[334298715,1722924646561,-153.118643,0.00013203,2]
[334298716,1722924646570,-203.54,0.0001331,2]
[334298717,1722924646580,-177.89577628,0.00013333,2]
[334298718,1722924646591,-337.12,0.00013386,2]
[334298719,1722924646601,-390.4,0.00013395,2]
[334298720,1722924646611,-2549.2545823,0.00013425,2]
[334298721,1722924646620,-150.0,0.0001344,2]
[334298722,1722924646630,-2549.2545823,0.00013479,2]
[334298723,1722924646641,-221.0,0.0001349,2]
[334298724,1722924646651,-155.0,0.0001351,2]
[334298725,1722924646660,-419.0,0.00013512,2]
[334298726,1722924646670,-2549.2545823,0.00013534,2]
[334298727,1722924646680,-155.0,0.00013561,2]
[334298728,1722924646690,-2549.2545823,0.00013589,2]
[334298729,1722924646700,-2549.2545823,0.00013644,2]
[334298730,1722924646710,-280.0,0.00013686,2]
[334298731,1722924646719,-1000.0,0.00013699,2]
[334298732,1722924646729,-1000.0,0.00013699,2]
[334298733,1722924646739,-1000.0,0.00013699,2]
[334298734,1722924646748,-1000.0,0.00013699,2]
[334298735,1722924646758,-1000.0,0.00013699,2]
[334298736,1722924646767,-2549.2545823,0.00013699,2]
[334298737,1722924646777,-500.0,0.00013699,2]
[334298738,1722924646790,-200.0,0.00013699,2]
[334298739,1722924646799,-2751.0,0.00013699,2]
[334298740,1722924646810,-231.96,0.00013699,2]
[334298741,1722924646819,-300.0,0.00013699,2]
[334298742,1722924646831,-5441.17939617,0.0001372,2]
[334298743,1722924646842,-203.54,0.00013735,2]
[334298744,1722924646852,-2549.2545823,0.00013753,2]
[334298745,1722924646862,-300.0,0.00013799,2]
[334298746,1722924646872,-125821.28534486,0.000138,2]
[334298747,1722924646892,-789.99,0.000138,2]
[334298748,1722924646903,-48924.99963,0.000138,2]
[334298749,1722924646915,-22938.02456815,0.000138,2]
[334298750,1722924647102,-179.62,0.00011372,2]
[334298751,1722924647112,-179.62,0.00011391,2]
[334298752,1722924647121,-179.62,0.0001141,2]
[334298753,1722924647131,-200.0,0.0001188,2]
[334298754,1722924647140,-2051.13780783,0.00012581,2]
[334298755,1722924660113,-788.55521765,0.00012581,2]
[334298756,1722924660123,-1274.96047504,0.00012696,2]
[334298757,1722924660134,-210.95829151,0.00012855,2]
[334298758,1722924660144,-347.5045085,0.00012883,2]
[334298759,1722924660154,-155.0,0.00012883,2]
[334298760,1722924660164,-155.07790727,0.00012883,2]
[334298761,1722924660173,-297.33720666,0.00012883,2]
[334298762,1722924660183,-202.79589338,0.00012924,2]
[334298763,1722924660193,-155.0,0.00012924,2]
[334298764,1722924660202,-155.0,0.00012928,2]
[334298765,1722924660212,-328.08103898,0.00012995,2]
[334298766,1722924660221,-401.12503633,0.00013,2]
[334298767,1722924660231,-58996.97061945,0.000138,2]
[334298768,1722924662502,155.0,8.859e-05,2]
[334298770,1722924701072,363.87131843,8.859e-05,2]
[334298771,1722924708868,155.0,8.859e-05,2]
[334298772,1722924709354,485.439575,8.859e-05,2]
[334298773,1722924713545,227.65723628,8.859e-05,2]
[334298774,1722924713827,155.0,8.859e-05,2]
[334298775,1722924719103,257.82119532,8.859e-05,2]
[334298776,1722924719279,411.77126186,8.859e-05,2]
[334298777,1722924728747,425.73118234,8.859e-05,2]
[334298778,1722924730675,291.48744605,8.859e-05,2]
[334298779,1722924734253,411.77126186,8.859e-05,2]
[334298780,1722924737212,155.0,8.859e-05,2]
[334298781,1722924743040,692.92070415,8.859e-05,2]
[334298783,1722924745922,158.9995564,8.859e-05,2]
[334298784,1722924752810,155.0,8.859e-05,2]
[334298785,1722924754070,692.92070415,8.859e-05,2]
[334298786,1722924771867,155.16912908,8.859e-05,2]
[334298787,1722924782328,155.0,8.859e-05,2]
[334298788,1722924786605,155.0,8.859e-05,2]
[334298789,1722924794074,363.87131843,8.859e-05,2]
[334298790,1722924803898,500.0,0.00024932,120]
[334298791,1722924805315,485.439575,8.859e-05,2]
[334298792,1722924808610,227.65723628,8.859e-05,2]
[334298793,1722924809871,155.0,8.859e-05,2]
[334298794,1722924816841,155.0,8.859e-05,2]
[334298795,1722924832750,425.73118234,8.859e-05,2]
[334298796,1722924832830,155.0,8.859e-05,2]
[334298797,1722924835213,268.19312809,8.859e-05,2]
[334298798,1722924838992,158.9995564,8.859e-05,2]
[334298799,1722924839681,291.48744605,8.859e-05,2]
[334298800,1722924859262,411.77126186,8.859e-05,2]
[334298801,1722924871061,692.92070415,8.859e-05,2]
[334298802,1722924884614,155.0,8.859e-05,2]
[334298803,1722924889880,155.53277144,8.859e-05,2]
[334298804,1722924891737,363.87131843,8.859e-05,2]
[334298805,1722924893566,227.65723628,8.859e-05,2]
[334298806,1722924914626,155.0,8.859e-05,2]
[334298807,1722924917691,485.439575,8.859e-05,2]
[334298808,1722924922744,425.73118234,8.859e-05,2]
[334298809,1722924923185,759.86827843,8.859e-05,2]
[334298810,1722924934502,158.71449343,8.859e-05,2]
[334298811,1722924946276,411.77126186,8.859e-05,2]
[334298812,1722924948839,155.0,8.859e-05,2]
[334298813,1722924952755,425.73118234,8.859e-05,2]
[334298814,1722924959854,155.0,8.859e-05,2]
[334298815,1722924962187,291.48744605,8.859e-05,2]
[334298816,1722924966946,591.86630365,8.859e-05,2]
[334298820,1722924970583,227.65723628,8.859e-05,2]
[334298821,1722924987105,435.26542107,8.859e-05,2]
[334298822,1722925012892,485.439575,8.859e-05,2]
[334298824,1722925026610,155.0,8.859e-05,2]
[334298825,1722925043300,411.77126186,8.859e-05,2]
[334298826,1722925052085,227.65723628,8.859e-05,2]
[334298827,1722925065753,425.73118234,8.859e-05,2]
[334298828,1722925066189,291.48744605,8.859e-05,2]
[334298829,1722925097338,485.439575,8.859e-05,2]
[334298830,1722925123621,155.0,8.859e-05,2]
[334298833,1722925144593,227.65723628,8.859e-05,2]
[334298835,1722925151797,411.77126186,8.859e-05,2]
[334298836,1722925153624,155.0,8.859e-05,2]
[334298837,1722925165803,509.78639788,8.859e-05,2]
[334298838,1722925180430,291.48744605,8.859e-05,2]
[334298839,1722925199560,202.25,8.219e-05,2]
[334298840,1722925217271,485.439575,8.859e-05,2]
[334298841,1722925240124,227.65723628,8.219e-05,2]
[334298842,1722925240803,411.77126186,8.219e-05,2]
[334298844,1722925276210,291.48744605,8.219e-05,2]
[334298845,1722925292906,197.25,8.152e-05,2]
[334298846,1722925296701,485.439575,8.219e-05,2]
[334298848,1722925336674,227.65723628,8.219e-05,2]
[334298849,1722925337427,1759.11,8.219e-05,2]
[334298850,1722925342396,411.77126186,8.219e-05,2]
[334298851,1722925348801,411.77126186,8.219e-05,2]
[334298852,1722925368223,291.48744605,8.219e-05,2]
[334298853,1722925395346,485.439575,8.219e-05,2]
[334298854,1722925425342,485.439575,8.219e-05,2]
[334298855,1722925436614,227.65723628,8.219e-05,2]
[334298856,1722925460228,295.58511757,8.219e-05,2]
[334298857,1722925461316,244.4518047,8.219e-05,2]
[334298858,1722925512625,422.0,0.00025,60]
[334298859,1722925523783,186.97496703,8.219e-05,2]
[334298860,1722925547628,227.65723628,8.219e-05,2]
[334298861,1722925563633,227.65723628,8.219e-05,2]
[334298862,1722925578731,-672.4,9.595e-05,2]
[334298863,1722925578752,-250.0,9.612e-05,2]
[334298864,1722925578774,-766.61,9.625e-05,2]
[334298865,1722925578795,-332.79,9.661e-05,2]
[334298866,1722925578817,-788.61,9.675e-05,2]
[334298867,1722925578838,-156.16,9.7e-05,2]
[334298868,1722925578859,-609.18,9.822e-05,2]
[334298869,1722925578880,-500.0,9.88e-05,2]
[334298870,1722925578902,-1160.08,9.934e-05,2]
[334298871,1722925578922,-252.85211675,9.962e-05,2]
[334298872,1722925578942,-155.0,9.962e-05,2]
[334298873,1722925578962,-500.0,0.00010028,3]
[334298874,1722925578982,-200.0,0.00010094,2]
[334298875,1722925579002,-558.8,0.00010094,2]
[334298876,1722925579025,-197.25,0.0001019,2]
[334298877,1722925579046,-175.22,0.0001019,2]